lending/lending_fUSD_20240710
["ID","MTS","AMOUNT","RATE_DAILY","PERIOD"]
[331608030,1720578754498,-522.82,0.00014103,2]
[331608031,1720578754510,-500.0,0.00014103,2]
[331608032,1720578754521,-635.38,0.00014103,2]
[331608033,1720578754533,-7415.51,0.00014103,2]
[331608034,1720578754545,-3610.31,0.00014103,2]
[331608035,1720578754557,-663.26,0.00014103,2]
[331608036,1720578754570,-2867.15,0.00014103,2]
[331608037,1720578754582,-16890.74,0.00014103,2]
[331608038,1720578754594,-500.0,0.00014103,2]
[331608039,1720578754607,-500.0,0.00014103,2]
[331608040,1720578754619,-1875.4,0.00014103,2]
[331608041,1720578754631,-500.0,0.00014103,2]
[331608042,1720578754643,-551.8,0.00014103,2]
[331608043,1720578754654,-4077.31,0.00014103,2]
[331608044,1720578754666,-3530.8,0.00014103,2]
[331608045,1720578754678,-3028.89,0.00014103,2]
[331608046,1720578754690,-1218.44,0.00014103,2]
[331608047,1720578754701,-10810.32,0.00014103,2]
[331608048,1720578754712,-500.0,0.00014103,2]
[331608049,1720578754724,-500.0,0.00014103,2]
[331608050,1720578754735,-1431.77,0.00014103,2]
[331608051,1720578754746,-2505.49,0.00014103,2]
[331608052,1720578754757,-19271.94,0.00014103,2]
[331608053,1720578754768,-500.0,0.00014103,2]
[331608054,1720578754779,-1457.6,0.00014103,2]
[331608055,1720578754791,-500.0,0.00014103,2]
[331608056,1720578754802,-500.0,0.00014103,2]
[331608057,1720578754814,-500.0,0.00014103,2]
[331608058,1720578754825,-2780.88,0.00014103,2]
[331608059,1720578754837,-500.0,0.00014103,2]
[331608060,1720578754849,-2781.87,0.00014103,2]
[331608061,1720578754860,-500.0,0.00014103,2]
[331608062,1720578754873,-500.0,0.00014103,2]
[331608063,1720578754886,-6872.83,0.00014103,2]
[331608064,1720578754899,-500.0,0.00014103,2]
[331608065,1720578754911,-2366.06,0.00014103,2]
[331608066,1720578754923,-500.0,0.00014103,2]
[331608067,1720578754934,-500.0,0.00014103,2]
[331608068,1720578754947,-4065.4,0.00014103,2]
[331608069,1720578754959,-456.24154979,0.00014103,2]
[331608070,1720578754971,-1107.57,0.00014103,2]
[331608071,1720578754983,-1390.44,0.00014103,2]
[331608072,1720578754995,-3490.15,0.00014103,2]
[331608073,1720578755006,-3006.98,0.00014103,2]
[331608074,1720578755017,-852.1,0.00014103,2]
[331608075,1720578755029,-500.0,0.00014103,2]
[331608076,1720578755040,-3483.06,0.00014103,2]
[331608077,1720578755052,-990.71,0.00014103,2]
[331608078,1720578755063,-4468.39,0.00014103,2]
[331608079,1720578755080,-500.0,0.00014103,2]
[331608080,1720578755092,-1855.26,0.00014103,2]
[331608081,1720578755104,-602.02,0.00014103,2]
[331608082,1720578755116,-882.44,0.00014103,2]
[331608083,1720578755127,-583.01,0.00014103,2]
[331608084,1720578755137,-500.0,0.00014103,2]
[331608085,1720578755149,-8876.2,0.00014103,2]
[331608086,1720578755161,-500.0,0.00014103,2]
[331608087,1720578755174,-934.47,0.00014103,2]
[331608088,1720578755185,-2141.19,0.00014103,2]
[331608089,1720578755197,-500.0,0.00014103,2]
[331608090,1720578755208,-903.0,0.00014103,2]
[331608091,1720578755225,-5147.73,0.00014103,2]
[331608092,1720578755237,-954.89,0.00014103,2]
[331608093,1720578755248,-500.0,0.00014103,2]
[331608094,1720578755260,-3131.64,0.00014103,2]
[331608095,1720578755271,-500.0,0.00014103,2]
[331608096,1720578755283,-500.0,0.00014103,2]
[331608097,1720578755294,-500.0,0.00014103,2]
[331608098,1720578755306,-1557.06,0.00014103,2]
[331608099,1720578755317,-500.0,0.00014103,2]
[331608100,1720578755329,-3889.37,0.00014103,2]
[331608101,1720578755340,-500.0,0.00014103,2]
[331608102,1720578755352,-577.12,0.00014103,2]
[331608103,1720578755363,-500.0,0.00014103,2]
[331608104,1720578755374,-1743.94,0.00014103,2]
[331608105,1720578755387,-500.0,0.00014103,2]
[331608106,1720578755398,-500.0,0.00014103,2]
[331608107,1720578755409,-614.68,0.00014103,2]
[331608108,1720578755422,-8950.3,0.00014103,2]
[331608109,1720578755435,-538.39,0.00014103,2]
[331608110,1720578755445,-1018.29,0.00014103,2]
[331608111,1720578755457,-500.0,0.00014103,2]
[331608112,1720578755469,-1398.7,0.00014103,2]
[331608113,1720578755481,-500.0,0.00014103,2]
[331608114,1720578755493,-619.97672203,0.00014103,2]
[331608115,1720578755506,-2037.04,0.00014103,2]
[331608116,1720578755519,-1508.21,0.00014103,2]
[331608117,1720578755532,-2377.38,0.00014103,2]
[331608118,1720578755544,-2534.53,0.00014103,2]
[331608119,1720578755557,-2872.14,0.00014103,2]
[331608120,1720578755569,-500.0,0.00014103,2]
[331608121,1720578755581,-2027.01,0.00014103,2]
[331608122,1720578755592,-4263.38,0.00014103,2]
[331608123,1720578755606,-1232.23,0.00014103,2]
[331608124,1720578755618,-796.28,0.00014103,2]
[331608125,1720578755630,-500.0,0.00014103,2]
[331608126,1720578755641,-3049.92,0.00014103,2]
[331608127,1720578755653,-2821.53,0.00014103,2]
[331608128,1720578755664,-3249.13,0.00014103,2]
[331608129,1720578755676,-4199.56,0.00014103,2]
[331608130,1720578755688,-2500.98,0.00014103,2]
[331608131,1720578755699,-805.78,0.00014103,2]
[331608132,1720578755710,-500.0,0.00014103,2]
[331608133,1720578755722,-578.13,0.00014103,2]
[331608134,1720578755735,-500.0,0.00014103,2]
[331608135,1720578755747,-2527.73,0.00014103,2]
[331608136,1720578755759,-500.0,0.00014103,2]
[331608137,1720578755770,-976.94,0.00014103,2]
[331608138,1720578755782,-500.0,0.00014103,2]
[331608139,1720578755795,-912.7,0.00014103,2]
[331608140,1720578755808,-2477.3,0.00014103,2]
[331608141,1720578755820,-500.0,0.00014103,2]
[331608142,1720578755832,-2257.18,0.00014103,2]
[331608143,1720578755844,-628.03,0.00014103,2]
[331608144,1720578755855,-500.0,0.00014103,2]
[331608145,1720578755868,-3416.97,0.00014103,2]
[331608146,1720578755880,-706.93,0.00014103,2]
[331608147,1720578755892,-3448.23,0.00014103,2]
[331608148,1720578755904,-1232.81,0.00014103,2]
[331608149,1720578755916,-500.0,0.00014103,2]
[331608150,1720578755929,-2259.25,0.00014103,2]
[331608151,1720578755942,-2894.3,0.00014103,2]
[331608152,1720578755956,-500.0,0.00014103,2]
[331608153,1720578755968,-500.0,0.00014103,2]
[331608154,1720578755980,-500.0,0.00014103,2]
[331608155,1720578755991,-1929.12,0.00014103,2]
[331608156,1720578756003,-3384.27,0.00014103,2]
[331608157,1720578756015,-634.92,0.00014103,2]
[331608158,1720578756027,-500.0,0.00014103,2]
[331608159,1720578756039,-500.0,0.00014103,2]
[331608160,1720578756051,-500.0,0.00014103,2]
[331608161,1720578756062,-2196.93,0.00014103,2]
[331608162,1720578756074,-654.33,0.00014103,2]
[331608163,1720578756085,-500.0,0.00014103,2]
[331608164,1720578756096,-1229.65,0.00014103,2]
[331608165,1720578756108,-1728.08,0.00014103,2]
[331608166,1720578756120,-500.0,0.00014103,2]
[331608167,1720578756132,-1210.93,0.00014103,2]
[331608168,1720578756143,-500.0,0.00014103,2]
[331608169,1720578756155,-500.0,0.00014103,2]
[331608170,1720578756167,-903.93,0.00014103,2]
[331608171,1720578756179,-1238.02,0.00014103,2]
[331608172,1720578756190,-500.0,0.00014103,2]
[331608173,1720578756202,-1289.3,0.00014103,2]
[331608174,1720578756214,-1330.94,0.00014103,2]
[331608175,1720578756225,-500.0,0.00014103,2]
[331608176,1720578756236,-500.0,0.00014103,2]
[331608177,1720578756248,-1469.74,0.00014103,2]
[331608178,1720578756261,-962.6,0.00014103,2]
[331608179,1720578756273,-2167.98,0.00014103,2]
[331608180,1720578756285,-2623.08,0.00014103,2]
[331608181,1720578756298,-4719.0,0.00014103,2]
[331608182,1720578756310,-2704.83,0.00014103,2]
[331608183,1720578756323,-582.73,0.00014103,2]
[331608184,1720578756335,-500.0,0.00014103,2]
[331608185,1720578756347,-500.0,0.00014103,2]
[331608186,1720578756361,-500.0,0.00014103,2]
[331608187,1720578756374,-282.07785084,0.00014103,2]
[331608188,1720578756389,-4118.25,0.00014103,2]
[331608189,1720578756400,-427.08047125,0.00014103,2]
[331608190,1720578756413,-1019.09,0.00014103,2]
[331608191,1720578756424,-4998.81,0.00014103,2]
[331608192,1720578756436,-1239.67,0.00014103,2]
[331608193,1720578756449,-500.0,0.00014103,2]
[331608194,1720578756460,-500.0,0.00014103,2]
[331608195,1720578756472,-3378.14,0.00014103,2]
[331608196,1720578756485,-864.0,0.00014103,2]
[331608197,1720578756496,-2524.16,0.00014103,2]
[331608198,1720578756510,-1140.18,0.00014103,2]
[331608199,1720578756523,-500.0,0.00014103,2]
[331608200,1720578756535,-1566.26,0.00014103,2]
[331608201,1720578756548,-500.0,0.00014103,2]
[331608202,1720578756560,-2247.97,0.00014103,2]
[331608203,1720578756572,-1668.28,0.00014103,2]
[331608204,1720578756585,-1541.81,0.00014103,2]
[331608205,1720578756597,-655.24,0.00014103,2]
[331608206,1720578756610,-500.0,0.00014103,2]
[331608207,1720578756622,-500.0,0.00014103,2]
[331608208,1720578756635,-854.28,0.00014103,2]
[331608209,1720578756647,-3977.48,0.00014103,2]
[331608210,1720578756660,-673.97,0.00014103,2]
[331608211,1720578756672,-500.0,0.00014103,2]
[331608212,1720578756686,-2144.39,0.00014103,2]
[331608213,1720578756711,-486.66839978,0.00014103,2]
[331608214,1720578756723,-1226.77,0.00014103,2]
[331608215,1720578756735,-2920.14,0.00014103,2]
[331608216,1720578756747,-500.0,0.00014103,2]
[331608217,1720578756759,-4020.96,0.00014103,2]
[331608218,1720578756772,-500.0,0.00014103,2]
[331608219,1720578756784,-1056.97,0.00014103,2]
[331608220,1720578756797,-764.37,0.00014103,2]
[331608221,1720578756809,-547.38,0.00014103,2]
[331608222,1720578756822,-857.73,0.00014103,2]
[331608223,1720578756835,-1638.84,0.00014103,2]
[331608224,1720578756847,-1467.22,0.00014103,2]
[331608225,1720578756860,-655.77,0.00014103,2]
[331608226,1720578756874,-1834.97,0.00014103,2]
[331608227,1720578756889,-619.54281806,0.00014103,2]
[331608228,1720578756903,-3134.08,0.00014103,2]
[331608229,1720578756916,-889.54,0.00014103,2]
[331608230,1720578756928,-593.79,0.00014103,2]
[331608231,1720578756941,-1457.4,0.00014103,2]
[331608232,1720578756955,-835.98,0.00014103,2]
[331608233,1720578756968,-500.0,0.00014103,2]
[331608234,1720578756981,-661.66,0.00014103,2]
[331608235,1720578756994,-500.0,0.00014103,2]
[331608236,1720578757007,-2100.02,0.00014103,2]
[331608237,1720578757020,-500.0,0.00014103,2]
[331608238,1720578757033,-720.29,0.00014103,2]
[331608239,1720578757046,-1346.39,0.00014103,2]
[331608240,1720578757060,-550.66,0.00014103,2]
[331608241,1720578757073,-1127.85,0.00014103,2]
[331608242,1720578757086,-3512.43,0.00014103,2]
[331608243,1720578757099,-500.0,0.00014103,2]
[331608244,1720578757113,-1483.16,0.00014103,2]
[331608245,1720578757126,-500.0,0.00014103,2]
[331608246,1720578757143,-6244.58,0.00014103,2]
[331608247,1720578758160,-2849.79,0.00014103,2]
[331608248,1720578758299,-1706.17,0.00014103,2]
[331608249,1720578758310,-1239.0,0.00014103,2]
[331608250,1720578758320,-500.0,0.00014103,2]
[331608251,1720578758330,-500.0,0.00014103,2]
[331608252,1720578758339,-500.0,0.00014103,2]
[331608253,1720578758349,-1467.17,0.00014103,2]
[331608254,1720578758359,-567.1,0.00014103,2]
[331608255,1720578758369,-500.0,0.00014103,2]
[331608256,1720578758378,-500.0,0.00014103,2]
[331608257,1720578758389,-520.91,0.00014103,2]
[331608258,1720578758399,-3650.73,0.00014103,2]
[331608259,1720578758410,-1245.43,0.00014103,2]
[331608260,1720578758420,-500.0,0.00014103,2]
[331608261,1720578758430,-500.0,0.00014103,2]
[331608262,1720578758439,-500.0,0.00014103,2]
[331608263,1720578758448,-657.91,0.00014103,2]
[331608264,1720578758458,-500.0,0.00014103,2]
[331608265,1720578758468,-1230.11,0.00014103,2]
[331608266,1720578758478,-1858.66,0.00014103,2]
[331608267,1720578758488,-500.0,0.00014103,2]
[331608268,1720578758498,-3451.64,0.00014103,2]
[331608269,1720578758508,-1741.78,0.00014103,2]
[331608270,1720578758518,-714.23,0.00014103,2]
[331608271,1720578758527,-500.0,0.00014103,2]
[331608272,1720578758537,-927.35,0.00014103,2]
[331608273,1720578758547,-500.0,0.00014103,2]
[331608274,1720578758556,-5993.12,0.00014103,2]
[331608275,1720578758566,-500.0,0.00014103,2]
[331608276,1720578758576,-968.04,0.00014103,2]
[331608277,1720578758586,-917.99,0.00014103,2]
[331608278,1720578758596,-500.0,0.00014103,2]
[331608279,1720578758606,-922.38,0.00014103,2]
[331608280,1720578758616,-2313.53,0.00014103,2]
[331608281,1720578758625,-2591.74,0.00014103,2]
[331608282,1720578758635,-500.0,0.00014103,2]
[331608283,1720578758645,-503.82,0.00014103,2]
[331608284,1720578758655,-836.08,0.00014103,2]
[331608285,1720578758665,-500.0,0.00014103,2]
[331608286,1720578758674,-844.97,0.00014103,2]
[331608287,1720578758684,-3557.48,0.00014103,2]
[331608288,1720578758694,-500.0,0.00014103,2]
[331608289,1720578758704,-3786.27,0.00014103,2]
[331608290,1720578758714,-500.0,0.00014103,2]
[331608291,1720578758724,-500.0,0.00014103,2]
[331608292,1720578758733,-1970.43,0.00014103,2]
[331608293,1720578758743,-3525.51,0.00014103,2]
[331608294,1720578758752,-1296.43,0.00014103,2]
[331608295,1720578758762,-1109.56,0.00014103,2]
[331608296,1720578758772,-838.6,0.00014103,2]
[331608297,1720578758782,-2503.8,0.00014103,2]
[331608298,1720578758792,-3965.45,0.00014103,2]
[331608299,1720578758802,-500.0,0.00014103,2]
[331608300,1720578758812,-609.31,0.00014103,2]
[331608301,1720578758822,-4650.87,0.00014103,2]
[331608302,1720578758832,-500.0,0.00014103,2]
[331608303,1720578758842,-861.16,0.00014103,2]
[331608304,1720578758852,-1205.83,0.00014103,2]
[331608305,1720578758861,-506.91,0.00014103,2]
[331608306,1720578758871,-632.68,0.00014103,2]
[331608307,1720578758882,-500.0,0.00014103,2]
[331608308,1720578758893,-772.45,0.00014103,2]
[331608309,1720578758904,-500.0,0.00014103,2]
[331608310,1720578758914,-500.0,0.00014103,2]
[331608311,1720578758924,-770.23,0.00014103,2]
[331608312,1720578758934,-1752.78,0.00014103,2]
[331608313,1720578758944,-3383.54,0.00014103,2]
[331608314,1720578758953,-1512.13,0.00014103,2]
[331608315,1720578758963,-2688.28,0.00014103,2]
[331608316,1720578758973,-500.0,0.00014103,2]
[331608317,1720578758983,-1577.95,0.00014103,2]
[331608318,1720578758993,-1346.76,0.00014103,2]
[331608319,1720578759002,-500.0,0.00014103,2]
[331608320,1720578759011,-500.0,0.00014103,2]
[331608321,1720578759021,-1729.82,0.00014103,2]
[331608322,1720578759031,-500.0,0.00014103,2]
[331608323,1720578759041,-500.0,0.00014103,2]
[331608324,1720578759051,-1401.3,0.00014103,2]
[331608325,1720578759060,-500.0,0.00014103,2]
[331608326,1720578759070,-706.06,0.00014103,2]
[331608327,1720578759080,-500.0,0.00014103,2]
[331608328,1720578759090,-500.0,0.00014103,2]
[331608329,1720578759099,-500.0,0.00014103,2]
[331608330,1720578759110,-500.0,0.00014103,2]
[331608331,1720578759120,-500.0,0.00014103,2]
[331608332,1720578759130,-506.02366583,0.00014103,2]
[331608333,1720578759142,-1212.72,0.00014103,2]
[331608334,1720578759154,-500.0,0.00014103,2]
[331608335,1720578759165,-217.0248605,0.00014103,2]
[331608336,1720578759175,-1016.3,0.00014103,2]
[331608337,1720578759186,-500.0,0.00014103,2]
[331608338,1720578759196,-500.0,0.00014103,2]
[331608339,1720578759206,-200.0,0.00014103,2]
[331608340,1720578759216,-984.92,0.00014103,2]
[331608341,1720578759226,-562.45,0.00014103,2]
[331608342,1720578759235,-500.0,0.00014103,2]
[331608343,1720578759246,-724.17,0.00014103,2]
[331608344,1720578759255,-500.0,0.00014103,2]
[331608345,1720578759266,-500.0,0.00014103,2]
[331608346,1720578759276,-500.0,0.00014103,2]
[331608347,1720578759286,-500.0,0.00014103,2]
[331608348,1720578759295,-500.0,0.00014103,2]
[331608349,1720578759305,-883.34,0.00014103,2]
[331608350,1720578759315,-931.23,0.00014103,2]
[331608351,1720578759324,-500.0,0.00014103,2]
[331608352,1720578759334,-500.0,0.00014103,2]
[331608353,1720578759343,-500.0,0.00014103,2]
[331608354,1720578759352,-752.49,0.00014103,2]
[331608355,1720578759362,-1577.0,0.00014103,2]
[331608356,1720578759372,-879.14,0.00014103,2]
[331608357,1720578759381,-3142.16,0.00014103,2]
[331608358,1720578759394,-1945.3,0.00014103,2]
[331608359,1720578759403,-1928.45,0.00014103,2]
[331608360,1720578759412,-500.0,0.00014103,2]
[331608361,1720578759421,-500.0,0.00014103,2]
[331608362,1720578759430,-500.0,0.00014103,2]
[331608363,1720578759440,-500.0,0.00014103,2]
[331608364,1720578759450,-154.12246311,0.00014103,2]
[331608365,1720578759459,-500.0,0.00014103,2]
[331608366,1720578759469,-500.0,0.00014103,2]
[331608367,1720578759479,-639.51,0.00014103,2]
[331608368,1720578759489,-500.0,0.00014103,2]
[331608369,1720578759503,-1207.67,0.00014103,2]
[331608370,1720578759514,-500.0,0.00014103,2]
[331608371,1720578759524,-500.0,0.00014103,2]
[331608372,1720578759534,-500.0,0.00014103,2]
[331608373,1720578759543,-1000.0,0.00014103,2]
[331608374,1720578759554,-500.0,0.00014103,2]
[331608375,1720578759564,-776.82,0.00014103,2]
[331608376,1720578759574,-500.0,0.00014103,2]
[331608377,1720578759584,-500.0,0.00014103,2]
[331608378,1720578759594,-500.0,0.00014104,2]
[331608379,1720578759604,-500.0,0.00014104,2]
[331608380,1720578759614,-500.0,0.00014104,2]
[331608381,1720578759624,-500.0,0.00014104,2]
[331608382,1720578759638,-500.0,0.00014104,2]
[331608383,1720578759649,-500.0,0.00014104,2]
[331608384,1720578759659,-500.0,0.00014104,2]
[331608385,1720578759669,-500.0,0.00014104,2]
[331608386,1720578759679,-500.0,0.00014104,2]
[331608387,1720578759689,-500.0,0.00014104,2]
[331608388,1720578759698,-500.0,0.00014104,2]
[331608389,1720578759708,-500.0,0.00014104,2]
[331608390,1720578759717,-500.0,0.00014104,2]
[331608391,1720578759727,-500.0,0.00014104,2]
[331608392,1720578759737,-500.0,0.00014104,2]
[331608393,1720578759747,-500.0,0.00014104,2]
[331608394,1720578759756,-500.0,0.00014104,2]
[331608395,1720578759766,-500.0,0.00014104,2]
[331608396,1720578759776,-500.0,0.00014104,2]
[331608397,1720578759786,-500.0,0.00014104,2]
[331608398,1720578759795,-500.0,0.00014104,2]
[331608399,1720578759805,-333.22557906,0.00014104,2]
[331608400,1720578759815,-500.0,0.00014104,2]
[331608401,1720578759824,-500.0,0.00014104,2]
[331608402,1720578759835,-500.0,0.00014104,2]
[331608403,1720578759845,-344.90677217,0.00014104,2]
[331608404,1720578759855,-500.0,0.00014104,2]
[331608405,1720578759866,-500.0,0.00014104,2]
[331608406,1720578759877,-500.0,0.00014104,2]
[331608407,1720578759893,-500.0,0.00014104,2]
[331608408,1720578759903,-500.0,0.00014104,2]
[331608409,1720578759913,-500.0,0.00014104,2]
[331608410,1720578759923,-500.0,0.00014104,2]
[331608411,1720578759936,-500.0,0.00014104,2]
[331608412,1720578759947,-500.0,0.00014104,2]
[331608413,1720578759958,-500.0,0.00014104,2]
[331608414,1720578759970,-500.0,0.00014104,2]
[331608415,1720578759980,-500.0,0.00014104,2]
[331608416,1720578759991,-225.25311125,0.00014104,2]
[331608417,1720578760002,-500.0,0.00014104,2]
[331608418,1720578760012,-500.0,0.00014104,2]
[331608419,1720578760022,-500.0,0.00014104,2]
[331608420,1720578760032,-500.0,0.00014104,2]
[331608421,1720578760044,-500.0,0.00014104,2]
[331608422,1720578760054,-500.0,0.00014104,2]
[331608423,1720578760064,-500.0,0.00014104,2]
[331608424,1720578760074,-500.0,0.00014104,2]
[331608425,1720578760084,-500.0,0.00014104,2]
[331608426,1720578760094,-500.0,0.00014104,2]
[331608427,1720578760104,-500.0,0.00014104,2]
[331608428,1720578760114,-500.0,0.00014104,2]
[331608429,1720578760123,-500.0,0.00014104,2]
[331608430,1720578760133,-500.0,0.00014104,2]
[331608431,1720578760146,-500.0,0.00014104,2]
[331608432,1720578760157,-500.0,0.00014104,2]
[331608433,1720578760167,-500.0,0.00014104,2]
[331608434,1720578760177,-500.0,0.00014104,2]
[331608435,1720578760186,-242.39388127,0.00014104,2]
[331608436,1720578760196,-581.09649935,0.00014104,2]
[331608437,1720578760206,-500.0,0.00014104,2]
[331608438,1720578760216,-500.0,0.00014104,2]
[331608439,1720578760225,-500.0,0.00014104,2]
[331608440,1720578760235,-500.0,0.00014104,2]
[331608441,1720578760244,-283.59630005,0.00014104,2]
[331608442,1720578760254,-500.0,0.00014104,2]
[331608443,1720578760264,-500.0,0.00014104,2]
[331608444,1720578760274,-2290.0,0.00014104,2]
[331608445,1720578760283,-500.0,0.00014104,2]
[331608446,1720578760293,-500.0,0.00014104,2]
[331608447,1720578760303,-500.0,0.00014104,2]
[331608448,1720578760312,-500.0,0.00014104,2]
[331608449,1720578760322,-500.0,0.00014104,2]
[331608450,1720578760332,-500.0,0.00014104,2]
[331608451,1720578760341,-500.0,0.00014104,2]
[331608452,1720578760351,-500.0,0.00014104,2]
[331608453,1720578760360,-2057.34,0.00014104,2]
[331608454,1720578760371,-500.0,0.00014104,2]
[331608455,1720578760380,-1648.68,0.00014104,2]
[331608456,1720578760393,-500.0,0.00014104,2]
[331608457,1720578760403,-500.0,0.00014104,2]
[331608458,1720578760414,-500.0,0.00014104,2]
[331608459,1720578760423,-500.0,0.00014104,2]
[331608460,1720578760432,-500.0,0.00014104,2]
[331608461,1720578760442,-2721.34,0.00014104,2]
[331608462,1720578760451,-500.0,0.00014104,2]
[331608463,1720578760461,-1375.79,0.00014104,2]
[331608464,1720578760471,-500.0,0.00014104,2]
[331608465,1720578760481,-500.0,0.00014104,2]
[331608466,1720578760492,-544.49,0.00014104,2]
[331608467,1720578760503,-622.4815966,0.00014104,2]
[331608468,1720578760514,-3248.9,0.00014104,2]
[331608469,1720578760525,-500.0,0.00014104,2]
[331608470,1720578760535,-500.0,0.00014104,2]
[331608471,1720578760545,-500.0,0.00014104,2]
[331608472,1720578760556,-3341.97,0.00014104,2]
[331608473,1720578760566,-500.0,0.00014104,2]
[331608474,1720578760575,-2571.74,0.00014104,2]
[331608475,1720578760584,-500.0,0.00014104,2]
[331608476,1720578760594,-576.23,0.00014104,2]
[331608477,1720578760603,-3031.33,0.00014104,2]
[331608478,1720578760612,-500.0,0.00014104,2]
[331608479,1720578760789,-500.0,0.00014104,2]
[331608480,1720578760799,-545.72,0.00014104,2]
[331608481,1720578760809,-165.025128,0.00014104,2]
[331608482,1720578760820,-3107.63,0.00014104,2]
[331608483,1720578760830,-524.43388406,0.00014104,2]
[331608484,1720578760841,-606.78,0.00014104,2]
[331608485,1720578760850,-500.0,0.00014104,2]
[331608486,1720578760860,-500.0,0.00014104,2]
[331608487,1720578760869,-2546.33,0.00014104,2]
[331608488,1720578760883,-4733.97,0.00014104,2]
[331608489,1720578760894,-500.0,0.00014104,2]
[331608490,1720578760903,-500.0,0.00014104,2]
[331608491,1720578760914,-542.94072758,0.00014104,2]
[331608492,1720578760924,-500.0,0.00014104,2]
[331608493,1720578760934,-5347.65,0.00014104,2]
[331608494,1720578760943,-571.73150226,0.00014104,2]
[331608495,1720578760952,-3712.9,0.00014104,2]
[331608496,1720578760962,-500.0,0.00014104,2]
[331608497,1720578760971,-3617.99,0.00014104,2]
[331608498,1720578760981,-500.0,0.00014104,2]
[331608499,1720578760990,-500.0,0.00014104,2]
[331608500,1720578760999,-1944.76,0.00014104,2]
[331608501,1720578761008,-500.0,0.00014104,2]
[331608502,1720578761017,-6292.93,0.00014104,2]
[331608503,1720578761027,-500.0,0.00014104,2]
[331608504,1720578761036,-500.0,0.00014104,2]
[331608505,1720578761045,-923.68,0.00014104,2]
[331608506,1720578761055,-500.0,0.00014104,2]
[331608507,1720578761065,-500.0,0.00014104,2]
[331608508,1720578761074,-3900.61,0.00014104,2]
[331608509,1720578761084,-500.0,0.00014104,2]
[331608510,1720578761094,-1108.95,0.00014104,2]
[331608511,1720578761103,-333.99993555,0.00014104,2]
[331608512,1720578761112,-500.0,0.00014104,2]
[331608513,1720578761121,-500.0,0.00014104,2]
[331608514,1720578761131,-444.13774798,0.00014104,2]
[331608515,1720578761142,-1959.1,0.00014104,2]
[331608516,1720578761152,-500.0,0.00014104,2]
[331608517,1720578761162,-2330.31,0.00014104,2]
[331608518,1720578761172,-500.0,0.00014104,2]
[331608519,1720578761181,-500.0,0.00014104,2]
[331608520,1720578761190,-3674.18,0.00014104,2]
[331608521,1720578761200,-500.0,0.00014104,2]
[331608522,1720578761209,-280.02931367,0.00014104,2]
[331608523,1720578761219,-500.0,0.00014104,2]
[331608524,1720578761228,-500.0,0.00014104,2]
[331608525,1720578761238,-5450.96,0.00014104,2]
[331608526,1720578761248,-1854.06,0.00014104,2]
[331608527,1720578761257,-500.0,0.00014104,2]
[331608528,1720578761267,-500.0,0.00014104,2]
[331608529,1720578761277,-500.0,0.00014104,2]